Cogmind - Beta 16.1 @@@ ROGUE MODE // 2026.04.20 @ 18:04:56 Player: obl-vn Result: Self-destructed Performance ------------- Evolutions (3) 1500 Regions Visited (7) 1400 Robots Destroyed (68) 340 Value Destroyed (1965) 1965 Prototype IDs (29) 580 Alien Tech Used (0) 0 Bonus (300) 300 TOTAL SCORE: 6085 Bonus ------- Aligned with FarCom 300 Cogmind --------- Core Integrity 683/700 Matter 206/300 Energy 310/310 System Corruption 0% Temperature Cool (0) Movement Treading (200) Ox1 Location -7/Lower Caves Parts ------- > --- POWER (1) -------- Heavy Deuterium Engine > --- PROPULSION (4) --- Light Treads Light Treads Light Treads Light Treads > --- UTILITY (6) ------ Improved Cooling System Huge Storage Unit Advanced Targeting Computer Hardened Heavy Armor Plating Shield Generator > --- WEAPON (2) ------- Enhanced Autogun Enhanced Autogun > --- INVENTORY (25) --- Heavy Deuterium Engine Light Treads Light Treads Light Treads Light Treads Advanced Heat Sink Large Storage Unit Launcher Guidance Computer Core Analyzer Weapon Cycler Transmission Jammer Improved Light Armor Plating Reflective Plating Shield Generator Improved Shield Generator Dynamic Insulation System Recalibrator Guided Plasma Cannon Enhanced Autogun Enhanced Autogun Gauss Rifle Gauss Cannon Gauss Cannon Rocket Launcher Heavy Mace Peak State ------------ > --- POWER ------------ Heavy Deuterium Engine > --- PROPULSION ------- Light Treads Light Treads Light Treads Light Treads > --- UTILITY ---------- Improved Cooling System Huge Storage Unit Advanced Targeting Computer Hardened Heavy Armor Plating Recalibrator > --- WEAPON ----------- Enhanced Autogun Enhanced Autogun > --- INVENTORY -------- Heavy Deuterium Engine Light Treads Light Treads Light Treads Light Treads Advanced Heat Sink Large Storage Unit Launcher Guidance Computer Core Analyzer Weapon Cycler Reflective Plating Shield Generator Shield Generator Dynamic Insulation System Latent Energy Streamer Guided Plasma Cannon Enhanced Autogun Enhanced Autogun Gauss Rifle Gauss Cannon Gauss Cannon Rocket Launcher Heavy Mace [Rating: 45] Favorites ----------- Power Light Nuclear Core Engine Heavy Deuterium Engine Power Core Light Nuclear Core Propulsion Light Treads Treads Light Treads Hover Unit Aerolev Unit Utility Shield Generator Device Shield Generator Storage Large Storage Unit Processor Advanced Targeting Computer Protection Improved Light Armor Plating Weapon Assault Rifle Energy Gun Small Laser Energy Cannon Beam Cannon Ballistic Gun Assault Rifle Ballistic Cannon Gauss Cannon Launcher Grenade Launcher Build | -11 -10 -10 -10 -9 -8 -7 -7 ------- Run | Yrd Mat Min Exi Min Mat Fac Low Slots Evolved 6 | . . . . . 4 2 . Power . | . . . . . . . . Propulsion 2 | . . . . . 1 1 . Utility 4 | . . . . . 3 1 . Weapon . | . . . . . . . . Parts Attached 49 | 5 10 1 4 1 24 4 . Power 6 | 1 2 . . . 3 . . Engine 4 | 1 . . . . 3 . . Core 2 | . 2 . . . . . . Reactor . | . . . . . . . . Propulsion 10 | 2 1 . 1 . 6 . . Treads 9 | 2 1 . 1 . 5 . . Leg . | . . . . . . . . Wheel . | . . . . . . . . Hover 1 | . . . . . 1 . . Flight . | . . . . . . . . Utility 18 | . 4 . 2 . 8 4 . Device 9 | . 2 . 2 . 3 2 . Storage 3 | . 2 . . . 1 . . Processor 1 | . . . . . . 1 . Hackware . | . . . . . . . . Protection 5 | . . . . . 4 1 . Artifact . | . . . . . . . . Weapon 15 | 2 3 1 1 1 7 . . Energy Gun 1 | 1 . . . . . . . Energy Cannon 3 | . 1 . 1 . 1 . . Ballistic Gun 6 | 1 1 1 . . 3 . . Ballistic Cannon 2 | . . . . . 2 . . Launcher 3 | . 1 . . 1 1 . . Special Weapon . | . . . . . . . . Impact Weapon . | . . . . . . . . Slashing Weapon . | . . . . . . . . Piercing Weapon . | . . . . . . . . Special Melee Weapon . | . . . . . . . . Unidentified Prototypes 4 | . . . 1 . 3 . . Parts Lost 2 | . 1 . 1 . . . . Power 1 | . 1 . . . . . . Propulsion . | . . . . . . . . Utility 1 | . . . 1 . . . . Weapon . | . . . . . . . . Highest Loss Streak 1 | . 1 . 1 . . . . To Critical Strikes . | . . . . . . . . Average Backups 14 | 1 11 14 11 14 16 23 24 Power 1 | . 1 1 . 1 1 1 1 Propulsion 4 | . 5 6 5 6 4 4 4 Utility 4 | . 2 3 2 2 6 9 11 Weapon 3 | . 1 3 2 5 4 9 8 Tool/Special . | . . . . . . . . Unused Backups 20 | . 1 2 . . 2 . 15 Power 3 | . . 1 . . 1 . 1 Propulsion 5 | . . . . . 1 . 4 Utility 7 | . . . . . . . 7 Weapon 4 | . 1 . . . . . 3 Tool/Special 1 | . . 1 . . . . . Average Slot Usage (%) 98 | . 98 100 91 100 98 98 92 Engine 4 | . 3 . . . 8 7 7 Core 6 | . 10 14 14 14 . . . Treads 27 | . 27 28 28 28 27 29 30 Device 14 | . 13 14 9 14 17 15 15 Storage 11 | . 13 14 10 14 9 7 7 Protection 7 | . . . . . 17 14 7 Energy Gun 1 | . 3 . . . . . . Energy Cannon 7 | . 7 14 14 2 7 . . Ballistic Gun 11 | . 15 14 13 14 5 14 15 Ballistic Cannon 1 | . . . . . 3 . . Launcher 1 | . . . . 11 1 . . Peak Build Rating 45 | 5 11 13 21 13 40 45 44 Average Rating 23 | 3 10 12 12 13 35 42 42 On Entrance 17 | . 5 11 13 13 13 37 44 Avg Prop Armor Cover (%) . | . . . . . . . . Naked Turns . | . . . . . . . . Heaviest Build 121 | 6 32 32 32 32 112 121 121 Greatest Support 80 | 40 40 40 40 40 60 80 80 Greatest Overweight (x) 1 | . 1 . . . 1 1 1 Average Overweight (x) . | . . . . . . 1 1 Largest Inventory Capacity 25 | 5 15 15 15 15 25 25 25 Average Capacity 15 | 5 12 15 12 15 17 25 25 Most Carried 25 | 5 15 15 15 14 25 25 25 Average Carried 15 | 1 11 14 11 14 16 24 24 Final Capacity 25 | 5 15 15 15 15 25 25 25 Final Carried 25 | 2 15 15 14 14 25 25 25 Class Distribution -------------------- 82% | Mutant 17% | Scavenger-Mutant Dominant Class ---------------- Mutant | -10/Materials Mutant | -10/Mines Mutant | -10/Exiles Mutant | -9/Mines Mutant | -8/Materials Scavenger-Mutant | -7/Factory Scavenger-Mutant | -7/Lower Caves Resources | -11 -10 -10 -10 -9 -8 -7 -7 ----------- Run | Yrd Mat Min Exi Min Mat Fac Low Matter Collected 1823 | 171 216 142 46 131 652 418 47 Remotely . | . . . . . . . . Salvage Created 2458 | . 418 45 103 22 1448 422 . Parts 144 | . 25 6 8 . 80 25 . Haulers Intercepted 4 | . 1 . . . 3 . . Recyclers Shooed 4 | . 1 . . . 2 1 . Parts Field Recycled . | . . . . . . . . Retrieved Matter . | . . . . . . . . Parts Self-Destructed . | . . . . . . . . Prevented . | . . . . . . . . Parts Restored 1 | . . . . . . 1 . Broken 1 | . . . . . . 1 . Kills | -11 -10 -10 -10 -9 -8 -7 -7 ------- Run | Yrd Mat Min Exi Min Mat Fac Low Combat Hostiles Destroyed 55 | . 11 3 3 5 24 9 . Guns 26 | . 9 3 1 1 6 6 . Cannons 17 | . 2 . 2 . 13 . . AOE 12 | . . . . 4 5 3 . Classes Destroyed 17 | . 5 . 1 1 9 1 . Worker 4 | . 2 . . . 2 . . Builder 2 | . . . . . 2 . . Tunneler 1 | . . . . . . 1 . Hauler 4 | . 1 . . . 3 . . Recycler 3 | . . . . . 2 1 . Operator 1 | . . . . . 1 . . Watcher 3 | . 1 . . . 1 1 . Swarmer 19 | . 6 3 . . 3 7 . Grunt 17 | . 5 . 1 . 11 . . Brawler 1 | . . . . . 1 . . Duelist 1 | . . . . . 1 . . Sentry 5 | . . . . . 4 1 . Specialist 2 | . . . . . 2 . . Hunter 1 | . . . . . 1 . . Programmer 3 | . . . 2 . . 1 . Heavy 1 | . . . . . 1 . . Assembled 5 | . . . . 5 . . . Best Kill Streak 6 | . 6 3 2 4 6 4 . Combat Bots Only 4 | . 4 3 2 4 3 4 . Max Kills in Single Turn 3 | . 2 1 1 1 3 3 . Gunslinging 1 | . 1 . . . . . . Exploded 3 | . . . . 1 2 3 . Melee . | . . . . . . . . Uniques/NPCs Destroyed . | . . . . . . . . Combat | -11 -10 -10 -10 -9 -8 -7 -7 -------- Run | Yrd Mat Min Exi Min Mat Fac Low Hostile Shots Fired 210 | . 55 14 17 5 27 91 1 Missed 60 | . 9 3 7 2 8 31 . Hits 150 | . 46 11 10 3 19 60 1 Melee 1 | . . . . . . . 1 Projectile 149 | . 46 11 10 3 19 60 . Critical Strikes 4 | . . . . 1 1 2 . Damage Taken 1241 | . 353 65 116 27 214 466 . Core 81 | . 25 6 10 11 12 17 . Absorbed by Shields 431 | . 140 26 28 11 83 143 . Core Remaining (%) 92 | 100 . . . 79 97 . . Volleys Fired 242 | . 46 9 7 10 138 29 3 Largest 2 | . 2 2 2 2 2 2 2 Hottest 120 | . 80 80 80 80 120 50 50 Shots Fired 365 | . 92 18 14 15 164 56 6 Gun 206 | . 73 9 7 5 51 55 6 Cannon 145 | . 19 9 7 5 105 . . Launcher 14 | . . . . 5 8 1 . Special . | . . . . . . . . Kinetic 209 | . 51 9 7 5 76 55 6 Thermal 142 | . 41 9 7 5 80 . . Explosive 14 | . . . . 5 8 1 . Electromagnetic . | . . . . . . . . Robot Hit Streak 23 | . 23 4 13 4 14 12 6 Robot Miss Streak 4 | . 4 4 1 2 3 2 2 Penetration Max 1 | . . . . . 1 . . Secondary Targets 3 | . 2 . . . . 1 . Max Gunslinging Chain 1 | . 1 . . . . 1 . Shots Hit Robots 193 | . 65 8 11 6 61 40 2 Core Hits 107 | . 23 3 6 10 48 17 . Critical Kills . | . . . . . . . . Critical Parts Destroyed 2 | . . 1 . . 1 . . Critical Strikes 2 | . . 1 . . 1 . . Destroy 2 | . . 1 . . 1 . . Melee Attacks . | . . . . . . . . Impact . | . . . . . . . . Slashing . | . . . . . . . . Piercing . | . . . . . . . . Sneak Attacks . | . . . . . . . . Combat Hostiles . | . . . . . . . . Follow-up Attacks . | . . . . . . . . Damage Inflicted 5863 | . 892 134 186 268 3457 887 39 Guns 2215 | . 629 49 64 40 688 706 39 Cannons 2751 | . 231 75 122 53 2270 . . Explosions 805 | . . . . 162 462 181 . Melee . | . . . . . . . . Ramming 92 | . 32 10 . 13 37 . . Kinetic 2156 | . 408 49 64 40 850 706 39 Thermal 2810 | . 452 75 122 53 2108 . . Explosive 805 | . . . . 162 462 181 . Electromagnetic . | . . . . . . . . Impact . | . . . . . . . . Slashing . | . . . . . . . . Piercing . | . . . . . . . . Highest Corruption . | . . . . . . . . Average Corruption . | . . . . . . . . Corruption Purged . | . . . . . . . . Corruption Blocked . | . . . . . . . . Overload Shots . | . . . . . . . . Overflow Damage 21 | . . . . 5 16 . . Projectiles 21 | . . . . 5 16 . . Explosions . | . . . . . . . . Melee . | . . . . . . . . Knockbacks 2 | . . . . . 2 . . Impact 1 | . . . . . 1 . . Kinetic 1 | . . . . . 1 . . Secondary . | . . . . . . . . Self-Inflicted Damage 30 | . . . . 5 25 . . Shots 3 | . . . . 1 2 . . Rammed 11 | . 4 1 . 3 3 . . Targets Rammed 11 | . 4 1 . 3 3 . . Kicked . | . . . . . . . . Crushed . | . . . . . . . . Highest Temperature 360 | . 132 174 132 193 360 . . Average Temperature 71 | . 39 98 56 110 83 . . Received Heat Transfer 353 | . 108 . 12 73 104 56 . Effects 3 | . . . . . 3 . . Interference 3 | . . . . . 3 . . Siege Activations . | . . . . . . . . Martial Activations . | . . . . . . . . Shielding Activations . | . . . . . . . . Robots Disrupted . | . . . . . . . . Combat Hostiles . | . . . . . . . . Robots Corrupted . | . . . . . . . . Combat Hostiles . | . . . . . . . . Parts Fried . | . . . . . . . . Impact Corruptions . | . . . . . . . . Robots Melted . | . . . . . . . . Combat Hostiles . | . . . . . . . . Parts Melted 13 | . . 1 . . 12 . . Heat Transferred 6318 | . 981 148 222 111 4856 . . Parts Sabotaged . | . . . . . . . . Parts Stolen 1 | . . . . . . . 1 Parts Stripped . | . . . . . . . . Power Chain Reactions . | . . . . . . . . Alert | -11 -10 -10 -10 -9 -8 -7 -7 ------- Run | Yrd Mat Min Exi Min Mat Fac Low Maximum Alert Level . | . . . . . . . . Low Security (%) 100 | 100 100 100 . 100 100 100 . Level 1 . | . . . . . . . . Level 2 . | . . . . . . . . Level 3 . | . . . . . . . . Level 4 . | . . . . . . . . Level 5 . | . . . . . . . . High Security . | . . . . . . . . Max Security . | . . . . . . . . Peak Influence 186 | . 124 85 . 10 186 121 . Initial 72 | . . 9 . . . 72 . Average 39 | . 26 12 . . 64 52 . Influence Increases 1589 | . 335 85 60 29 838 242 . Destroy 0b10 Robot/C 1000 | . 220 60 60 . 480 180 . Destroy 0b10 Robot/NC 90 | . 20 . . . 55 15 . Destroy Leader 224 | . 44 10 . . 128 42 . Successful Hack 36 | . 19 . . 5 12 . . Disable Machine 60 | . . . . . 60 . . Destroy Structure 89 | . 2 . . 24 58 5 . Lose Combat Pursuer 90 | . 30 15 . . 45 . . Influence Decreases 1589 | . 311 109 52 37 678 380 22 Entered New Map 120 | . . 15 . 8 . 88 9 Time Decay 1278 | . 301 94 48 29 501 292 13 Lost Part 14 | . 10 . 4 . . . . Purge Threat 177 | . . . . . 177 . . Squads Dispatched 4 | . . . . . 3 1 . Investigation . | . . . . . . . . Extermination 1 | . . . . . . 1 . Reinforcement 3 | . . . . . 3 . . Assault . | . . . . . . . . Garrison . | . . . . . . . . Intercept . | . . . . . . . . Searches Triggered . | . . . . . . . . Construction Impeded . | . . . . . . . . Haulers Reinforced . | . . . . . . . . Active Scanning Responses . | . . . . . . . . Cargo Convoy Interrupts . | . . . . . . . . Stealth | -11 -10 -10 -10 -9 -8 -7 -7 --------- Run | Yrd Mat Min Exi Min Mat Fac Low Distress Signals 6 | . 2 . . . 4 . . Communications Jammed . | . . . . . . . . Distress Signals . | . . . . . . . . Times Spotted 80 | . 33 4 3 4 24 10 2 Peak Tracking Total 4 | . 3 3 2 3 3 4 1 Tactical Retreats 7 | . 2 1 . 1 3 . . Traps | -11 -10 -10 -10 -9 -8 -7 -7 ------- Run | Yrd Mat Min Exi Min Mat Fac Low Traps Triggered 2 | . 2 . . . . . . Indirectly . | . . . . . . . . Trap Hack Attempts . | . . . . . . . . Triggered . | . . . . . . . . Disarmed . | . . . . . . . . Reprogrammed . | . . . . . . . . Reused . | . . . . . . . . Traps Extracted . | . . . . . . . . Installed . | . . . . . . . . Triggered . | . . . . . . . . Machines | -11 -10 -10 -10 -9 -8 -7 -7 ---------- Run | Yrd Mat Min Exi Min Mat Fac Low Machines Disabled 5 | . . . 1 . 4 . . Max in Single Turn 1 | . . . 1 . 1 . . Garrison Access 1 | . . . . . 1 . . Machines Repaired . | . . . . . . . . Machines Dismantled . | . . . . . . . . Machines Sabotaged . | . . . . . . . . Overloaded Fab Kills . | . . . . . . . . Hacking | -11 -10 -10 -10 -9 -8 -7 -7 --------- Run | Yrd Mat Min Exi Min Mat Fac Low Machines Accessed 22 | . 7 1 2 1 9 2 . Terminals 17 | . 7 . . 1 7 2 . Fabricators . | . . . . . . . . Repair Stations . | . . . . . . . . Recycling Units . | . . . . . . . . Scanalyzers 1 | . . . . . 1 . . Garrison Access 1 | . . . . . 1 . . Total Hacks 55 | . 18 1 2 2 28 4 . Successful 31 | . 8 1 2 2 18 . . Failed 23 | . 9 . . . 10 4 . Catastrophic 3 | . 1 . . . 2 . . Database Lockouts 1 | . 1 . . . . . . Manual 35 | . 15 . 1 1 14 4 . Terminals 47 | . 18 . . 2 23 4 . Fabricators . | . . . . . . . . Repair Stations . | . . . . . . . . Recycling Units . | . . . . . . . . Scanalyzers 2 | . . . . . 2 . . Garrison Access 3 | . . . . . 3 . . Terminal Hacks 14 | . 3 1 2 1 7 . . Record 2 | . . . 1 . 1 . . Robot Analysis 2 | . 1 . . . 1 . . Prototype ID Bank 1 | . . . . . 1 . . Open Door 1 | . . 1 . . . . . Alert Level 1 | . . . . . 1 . . Unreport Threat 2 | . . . . . 2 . . Locate Traps 2 | . 1 . . . 1 . . Dispatch Records 1 | . . . . 1 . . . Hauler Manifests 1 | . 1 . . . . . . Proto ID Catalog 1 | . . . 1 . . . . Fabricator Hacks . | . . . . . . . . Repair Station Hacks . | . . . . . . . . Recycling Unit Hacks . | . . . . . . . . Scanalyzer 2 | . . . . . 2 . . Retrieve Study 2 | . . . . . 2 . . Garrison Access Hacks 1 | . . . . . 1 . . Seal Access 1 | . . . . . 1 . . Unauthorized Hacks 14 | . 5 . . 1 8 . . Terminals 14 | . 5 . . 1 8 . . Botnet 2 | . . . . 1 1 . . Skim 12 | . 5 . . . 7 . . Fabricators . | . . . . . . . . Repair Stations . | . . . . . . . . Recycling Units . | . . . . . . . . Scanalyzers . | . . . . . . . . Garrison Access . | . . . . . . . . Data Cores Recovered . | . . . . . . . . Used . | . . . . . . . . Hacking Detections 17 | . 6 . . 1 8 2 . Full Trace Events . | . . . . . . . . Feedback Events . | . . . . . . . . Feedback Blocked . | . . . . . . . . Robot Schematics Acquired . | . . . . . . . . Robots Built . | . . . . . . . . Authchips . | . . . . . . . . Time . | . . . . . . . . Total Robot Build Rating . | . . . . . . . . Part Schematics Acquired . | . . . . . . . . Parts Built . | . . . . . . . . Authchips . | . . . . . . . . Time . | . . . . . . . . Total Part Build Rating . | . . . . . . . . Part Studies Acquired 2 | . . . . . 2 . . Parts Repaired . | . . . . . . . . Time . | . . . . . . . . Parts Recycled . | . . . . . . . . Recycled Matter . | . . . . . . . . Retrieved Matter . | . . . . . . . . Retrieved Components . | . . . . . . . . Parts Scanalyzed . | . . . . . . . . Part Schematics Acquired . | . . . . . . . . Parts Damaged . | . . . . . . . . Bothacking | -11 -10 -10 -10 -9 -8 -7 -7 ------------ Run | Yrd Mat Min Exi Min Mat Fac Low Used RIF Installer . | . . . . . . . . Robots Hacked . | . . . . . . . . Non-combat . | . . . . . . . . Combat . | . . . . . . . . Robot Hacks Applied . | . . . . . . . . Relay Couplers Released . | . . . . . . . . Fabnet Peak Effective % . | . . . . . . . . Robots Rewired . | . . . . . . . . Allies Hacked . | . . . . . . . . Hacks Repelled . | . . . . . . . . Allies | -11 -10 -10 -10 -9 -8 -7 -7 -------- Run | Yrd Mat Min Exi Min Mat Fac Low Total Allies . | . . . . . . . . Largest Group . | . . . . . . . . Highest-Rated Group . | . . . . . . . . Highest-Rated Ally . | . . . . . . . . Total Orders . | . . . . . . . . Ally Attacks . | . . . . . . . . Total Damage . | . . . . . . . . Kills . | . . . . . . . . Allies Corrupted . | . . . . . . . . Allies Melted . | . . . . . . . . Intel | -11 -10 -10 -10 -9 -8 -7 -7 ------- Run | Yrd Mat Min Exi Min Mat Fac Low Active Infowar (turns) . | . . . . . . . . Robot Analysis Total 2 | . 1 . . . 1 . . Derelict Logs Recovered 3 | . . 1 . 2 . . . Drone Launches 16 | . . . 16 . . . . Drone Recoveries . | . . . . . . . . Exploration | -11 -10 -10 -10 -9 -8 -7 -7 ------------- Run | Yrd Mat Min Exi Min Mat Fac Low Turns Passed 6561 | 76 1695 717 548 527 2282 652 64 Spaces Moved 3108 | 52 788 427 287 309 943 275 27 Core 16 | 16 . . . . . . . Treads 3092 | 36 788 427 287 309 943 275 27 Legs . | . . . . . . . . Wheels . | . . . . . . . . Hover . | . . . . . . . . Flight . | . . . . . . . . Fastest Speed 50 | 50 160 160 160 160 160 200 200 Average Speed 165 | 126 160 160 160 160 168 200 200 Slowest Speed 240 | 160 240 160 160 160 200 200 200 Overloaded Moves . | . . . . . . . . Propulsion Burnouts . | . . . . . . . . Robots Hopped . | . . . . . . . . Potential Cave-ins . | . . . . . . . . Cave-ins Triggered . | . . . . . . . . Exploration Rate (%) 47 | 3 94 87 59 57 63 8 8 Regions Visited 7 Branch Regions 4 Pre-discovered Areas 6 | . . 1 1 1 3 . . Known Exits Taken 3 | . . 1 1 . 1 . . Unknown Exits Taken 4 | 1 1 . . 1 . 1 . Scrap Searched 5 | . . 3 . 1 . . 1 Spaces Dug 24 | . . . . 4 20 . . Terrain Destroyed 95 | . . . . 30 63 2 . Melee . | . . . . . . . . Projectile 25 | . . . . . 25 . . AOE 70 | . . . . 30 38 2 . Terrain Rammed . | . . . . . . . . Walls Destroyed . | . . . . . . . . Machines Disabled . | . . . . . . . . Actions | -11 -10 -10 -10 -9 -8 -7 -7 --------- Run | Yrd Mat Min Exi Min Mat Fac Low Total 4181 | 63 1124 446 363 324 1489 339 33 Wait 636 | . 249 1 45 2 324 15 . Move 3101 | 51 787 426 286 308 942 274 27 Hop . | . . . . . . . . Pick Up 70 | 7 20 3 13 . 22 4 1 Fast Attach 14 | . 1 . 1 . 11 . 1 Attach 21 | 5 6 . 4 . 3 3 . Detach 1 | . . . 1 . . . . Swap 45 | . 7 1 2 1 22 12 . Drop 40 | . 4 5 4 . 24 2 1 Fire 242 | . 46 9 7 10 138 29 3 Melee . | . . . . . . . . Ram . | . . . . . . . . Kick . | . . . . . . . . Crush 11 | . 4 1 . 3 3 . . Escape Stasis . | . . . . . . . . Rewire . | . . . . . . . . Trap . | . . . . . . . . Miscellaneous . | . . . . . . . . Route ------- -11/Scrapyard -10/Materials (discovered 6 exits: *Mat x3 / *Min x2 / Sub) -10/Mines (discovered 3 exits: *Mat x2 / *Exi) -10/Exiles (discovered 2 exits: *Min x2) -9/Mines -8/Materials (discovered 3 exits: *Fac x3) -7/Factory (discovered 4 exits: Fac x3 / [*Low]) -7/Lower Caves (discovered 1 exit: Low) History --------- Turn | Location | Event 20 | -11/Scrapyard | Discovered new exit (range 16) 77 | -11/Scrapyard | Entered Materials 318 | -10/Materials | Build established: Mutant 387 | -10/Materials | Discovered new exit (range 15) 509 | -10/Materials | Discovered new exit (range 11) 809 | -10/Materials | Discovered new exit (range 12) 1073 | -10/Materials | Discovered new exit (range 11) 1096 | -10/Materials | Discovered new exit (range 13) 1476 | -10/Materials | Identified exit to Subcaves 1482 | -10/Materials | Central database locked down 1532 | -10/Materials | Learned location of 1 exit from Recycling 1655 | -10/Materials | Loaded intel: 4 trap records 1668 | -10/Materials | Learned 2 Mines zone layouts 1690 | -10/Materials | Learned 2 Storage zone layouts 1724 | -10/Materials | Loaded intel: 8 terminal locations 1769 | -10/Materials | Learned 2 Mines zone layouts 1772 | -10/Materials | Entered Mines 1773 | -10/Mines | Identified exit to Materials 1773 | -10/Mines | Identified exit to Exiles 1828 | -10/Mines | Found the Drone Emporium 1839 | -10/Mines | Found Prototype Device 1888 | -10/Mines | Received a Rocket Launcher from a helpful Derelict 2212 | -10/Mines | Discovered exit to Materials (range 6) 2307 | -10/Mines | Learned location of Mines (-9) 2481 | -10/Mines | Deemed a non-threat by the Exiles lab entrance 2489 | -10/Mines | Entered Exiles 2490 | -10/Exiles | Identified exit to Mines 2528 | -10/Exiles | Met 8R-AWN 2552 | -10/Exiles | Met EX-HEX 2598 | -10/Exiles | Met EX-BIN 2621 | -10/Exiles | Aligned with FarCom system 2622 | -10/Exiles | Given EX-Vault access code 2662 | -10/Exiles | Opened EX-Vault 2704 | -10/Exiles | Warned to stay clear of 0b10 Research branches 2718 | -10/Exiles | Identified Decoy Drone Bay 2772 | -10/Exiles | Exiles lab attacked by MAIN.C 2787 | -10/Exiles | Lost 16 allies 2804 | -10/Exiles | Found Latent Energy Streamer 2817 | -10/Exiles | Found Gui. Plasma Cannon 2972 | -10/Exiles | Learned location of Zion (-7) 3037 | -10/Exiles | Stole two prototypes: Latent Energy Streamer, Gui. Plasma Cannon 3037 | -10/Exiles | Entered Mines 3038 | -9/Mines | Assembled infested the area 3043 | -9/Mines | Assisted by a Guerilla fighting off Assembled 3524 | -9/Mines | Discovered new exit (range 5) 3544 | -9/Mines | Learned 2 Materials zone layouts 3564 | -9/Mines | Entered Materials 3564 | -8/Materials | Evolved 4 slots: Propulsion x1, Utility x3 4185 | -8/Materials | Discovered new exit (range 5) 4516 | -8/Materials | Build established: Scavenger-Mutant 4693 | -8/Materials | Discovered new exit (range 10) 4914 | -8/Materials | Build established: Mutant 5010 | -8/Materials | Gui. Plasma Cannon suddenly broke down 5592 | -8/Materials | Learned Factory trap positions 5620 | -8/Materials | Identified exit to Factory 5640 | -8/Materials | Learned 2 Lower Caves zone layouts 5649 | -8/Materials | Learned Storage non-interactive machine intel 5650 | -8/Materials | Learned location of Recycling (-7) 5653 | -8/Materials | Learned Storage emergency access door positions 5846 | -8/Materials | Entered Factory 5846 | -7/Factory | Evolved 2 slots: Propulsion x1, Utility x1 5847 | -7/Factory | Identified exit to Factory 5848 | -7/Factory | Loaded intel: 86 trap records 5848 | -7/Factory | FarCom data flow suspended 6146 | -7/Factory | Build established: Scavenger-Mutant 6323 | -7/Factory | Discovered new exit (range 14) 6498 | -7/Factory | Entered Lower Caves 6499 | -7/Lower Caves | Identified exit to Lower Caves 6499 | -7/Lower Caves | Latent Energy Streamer stolen by Master Thief 6500 | -7/Lower Caves | Encountered a Master Thief 6562 | -7/Lower Caves | Self-destructed Last Messages --------------- 06397_ Acquired 71 matter. 06413_ Dropped Imp. Light Armor Plating. 06415_ Acquired Transmission Jammer. 06418_ Acquired Imp. Light Armor Plating. 06473_ Gui. Plasma Cannon functionality restored. LOCATION=UNKNOWN GOAL=ESCAPE Loading 2 Lower Caves zones... 06499_ Latent Energy Streamer stolen. 06500_ 5E-MXQ(f): "Someone's put a hefty bounty on whatever we can steal from you!" 06525_ Searching scrap... 06525_ Found Imp. Propulsion Shielding. 06525_ Found Imp. Shield Generator. 06525_ Found 47 Matter. 06526_ Acquired 47 matter. 06533_ Acquired Imp. Shield Generator. 06534_ Dropped Shield Generator. 06535_ Acquired Shield Generator. Map ----- +----------------------------------------------------+ | ?????????????????????????????????????????????????? | | ?????????????????????????????????????????????????? | | ?????????????????????????????????????????????????? | | ?????????????????????????????????????????????????? | | ?????????????????????????????????????????????????? | | ?????????????????????????????????????????????????? | | ?????????????????????????????????????????????????? | | ?????????????????????????????????????????????????? | | ?????????????????????????? ???????????????????? | | ?????????????????????????? ???????????????????? | | ?????????????????????????? ???????????????????? | | ?????????????????????????? ???????????????????? | | ?????????????????????????? ???????????????????? | | ?????????????????????????? #???????????????????? | | ?????????????????????????? #???????????????????? | | ?????????????????????????? #???????????????????? | | ??????????????????????????# #???????????????????? | | ??????????????????????????# #???????????????????? | | ??????????????????????????# ????????????????????? | | ?????????????????????????## ????????????????????? | | ?????????????????????????# #????????????????????? | | ????????????????????????## ##########???????????? | | ?????????????????????#### #???##??????? | | ?????????????????????# ##?# ##?????? | | ?????????????????????# #### ## ##????? | | ?????????????????????# @ # #????? | | ?????????????? ## ! # #????? | | ?????????? ## # #####????? | | ???????????## ##### ###??????? | | ????????????## ???# ##?????? | | ?????????????# ??# #?????? | | ???????????? ### ?### #?????? | | ???????????? ###??# ### ##????? | | ?????????????## #??????#### #????? | | ??????????????#???????????#### #????? | | ?????????????????????????????###### #????? | | ?????????????????????????????????# ##???? | | ?????????????????????????????# #???? | | ?????????????????????????????# #???? | | ?????????????????????????????## ##???? | | ??????????????????????????????########### ##????? | | ????????????????????????????????????????####?????? | | ?????????????????????????????????????????????????? | | ?????????????????????????????????????????????????? | | ?????????????????????????????????????????????????? | | ?????????????????????????????????????????????????? | | ?????????????????????????????????????????????????? | | ?????????????????????????????????????????????????? | | ?????????????????????????????????????????????????? | | ?????????????????????????????????????????????????? | +----------------------------------------------------+ Best States ------------- Heat Dissipation 61 Energy Generation 18 Energy Capacity 310 Matter Stores 300 Matter Capacity 300 Sight Range 16 Terrain Scan Density 10 EM Shielding 2 Armor Coverage 600 Resistance: EM 15 Weapon Cycling 15 Evasion (%) 50 Targeting Accuracy 8 Recoil Reduction 4 Item Schematics ----------------- None Robot Schematics ------------------ None Fabricated ------------ Nothing Repaired ---------- Nothing Studied --------- Lgt. Treads | -8/Materials | Hacked Rocket Launcher | -8/Materials | Hacked Alien Tech Used ----------------- None Achievements -------------- None Challenges ------------ None Game ------ Seed MetafiberScrapShield Manual? 0 Play Time 00:55:46 Cumulative 125.2 hours Start 2026.04.20 @ 16:59:03 End 2026.04.20 @ 18:04:56 Sessions 1 Manual Loads 0 Difficulty Rogue Special Mode None Game No. 93 Rogue 93 Adventurer 0 Explorer 0 Win Type - Total 1 Types 0/0/0/1/0/0/0/0/0/0 Lore% 47 Gallery% 53 Achievement% 51 Wizard Run 0 Options --------- Layout 2 ASCII 0 Keyboard 0 Movement Mouse Keybinds 0 Fullscreen 1 Font 48/Smallcaps Map View 50x44 Zoom Use 0% Tactical HUD 1 Map Filters NONE Filters NONE Steam 1 RUN: 3e1e5255-a769-4048-a9e4-501597e66dfc